[Event "Titled Tuesday Blitz January 10 Late 2023"]
[White "Skaric, Djuro"]
[Black "Osmak, Yuliia"]
[WhiteFideId "934569"]
[BlackFideId "14101602"]
[WhiteElo "2334"]
[BlackElo "2440"]
[Result "0-1"]
[Round "04"]
[TimeControl "180+2"]
[Date "2023.01.10"]
[WhiteClock "0:01:16"]
[BlackClock "0:00:56"]

1. g3 {[%clk 0:00:00]}  g6 {[%clk 0:00:00]} 2. Bg2 {[%clk 0:03:00]}  Bg7 {[%clk 0:02:56]} 3. d3 {[%clk 0:02:55]}  Nf6 {[%clk 0:02:57]} 4. e4 {[%clk 0:02:54]}  d6 {[%clk 0:02:57]} 5. Nc3 {[%clk 0:02:54]}  O-O {[%clk 0:02:56]} 6. f4 {[%clk 0:02:55]}  c5 {[%clk 0:02:56]} 7. Nf3 {[%clk 0:02:55]}  Nc6 {[%clk 0:02:55]} 8. O-O {[%clk 0:02:55]}  a6 {[%clk 0:02:55]} 9. h3 {[%clk 0:02:55]}  Bd7 {[%clk 0:02:53]} 10. g4 {[%clk 0:02:55]}  b5 {[%clk 0:02:45]} 11. Ne2 {[%clk 0:02:55]}  Ne8 {[%clk 0:02:44]} 12. Ng3 {[%clk 0:02:53]}  Nd4 {[%clk 0:02:39]} 13. Nh4 {[%clk 0:02:52]}  e5 {[%clk 0:02:36]} 14. Nf3 {[%clk 0:02:49]}  exf4 {[%clk 0:02:27]} 15. Bxf4 {[%clk 0:02:47]}  Nxf3+ {[%clk 0:02:13]} 16. Qxf3 {[%clk 0:02:36]}  Bxb2 {[%clk 0:02:12]} 17. e5 {[%clk 0:02:36]}  dxe5 {[%clk 0:02:12]} 18. Bh6 {[%clk 0:02:33]}  Bxa1 {[%clk 0:02:05]} 19. Ne4 {[%clk 0:02:31]}  Bd4+ {[%clk 0:02:00]} 20. Kh1 {[%clk 0:02:21]}  Be6 {[%clk 0:01:56]} 21. Bxf8 {[%clk 0:02:20]}  Kxf8 {[%clk 0:01:52]} 22. Nxc5 {[%clk 0:02:19]}  Bxc5 {[%clk 0:01:50]} 23. Qxa8 {[%clk 0:02:15]}  Qxa8 {[%clk 0:01:47]} 24. Bxa8 {[%clk 0:02:14]}  Nc7 {[%clk 0:01:47]} 25. Bb7 {[%clk 0:02:15]}  Bd5+ {[%clk 0:01:46]} 26. Bxd5 {[%clk 0:02:11]}  Nxd5 {[%clk 0:01:33]} 27. Re1 {[%clk 0:02:10]}  f6 {[%clk 0:01:34]} 28. c4 {[%clk 0:02:07]}  bxc4 {[%clk 0:01:33]} 29. dxc4 {[%clk 0:02:07]}  Nf4 {[%clk 0:01:29]} 30. Rb1 {[%clk 0:02:07]}  Kg7 {[%clk 0:01:28]} 31. Rb7+ {[%clk 0:02:04]}  Kh6 {[%clk 0:01:25]} 32. Rc7 {[%clk 0:02:03]}  Bd4 {[%clk 0:01:25]} 33. Rd7 {[%clk 0:02:03]}  Nd3 {[%clk 0:01:23]} 34. Kg2 {[%clk 0:02:00]}  Nc5 {[%clk 0:01:21]} 35. Rd6 {[%clk 0:01:57]}  Kg5 {[%clk 0:01:20]} 36. Rb6 {[%clk 0:01:56]}  f5 {[%clk 0:01:20]} 37. gxf5 {[%clk 0:01:47]}  gxf5 {[%clk 0:01:16]} 38. Rc6 {[%clk 0:01:46]}  e4 {[%clk 0:01:17]} 39. Rd6 {[%clk 0:01:40]}  Be3 {[%clk 0:01:16]} 40. Rd5 {[%clk 0:01:40]}  Kf4 {[%clk 0:01:15]} 41. h4 {[%clk 0:01:39]}  h5 {[%clk 0:01:13]} 42. a3 {[%clk 0:01:40]}  Kg4 {[%clk 0:01:12]} 43. Kf1 {[%clk 0:01:37]}  f4 {[%clk 0:01:11]} 44. Rd8 {[%clk 0:01:35]}  Kxh4 {[%clk 0:01:10]} 45. Rg8 {[%clk 0:01:28]}  Kh3 {[%clk 0:01:07]} 46. Ke2 {[%clk 0:01:28]}  h4 {[%clk 0:01:07]} 47. Rg6 {[%clk 0:01:27]}  Bd4 {[%clk 0:01:06]} 48. Rg5 {[%clk 0:01:26]}  f3+ {[%clk 0:01:05]} 49. Kf1 {[%clk 0:01:16]}  e3 {[%clk 0:01:05]} 50. Rf5 {[%clk 0:01:16]}  e2+ {[%clk 0:01:04]} 51. Ke1 {[%clk 0:01:16]}  Nd3+ {[%clk 0:01:03]} 52. Kd2 {[%clk 0:01:16]}  e1=Q+ {[%clk 0:00:56]} 0-1


[Site "https://www.chess.com"]

[Event "Titled Tuesday Blitz January 10 Late 2023"]
[White "Alexikov, Alexander"]
[Black "Aldokhin, Ivan"]
[WhiteFideId "14103958"]
[BlackFideId "24115720"]
[WhiteElo "2209"]
[BlackElo "2413"]
[Result "0-1"]
[Round "04"]
[TimeControl "180+2"]
[Date "2023.01.10"]
[WhiteClock "0:00:03"]
[BlackClock "0:00:19"]

1. e4 {[%clk 0:00:00]}  c5 {[%clk 0:00:00]} 2. Nf3 {[%clk 0:03:00]}  e6 {[%clk 0:02:59]} 3. Nc3 {[%clk 0:03:00]}  a6 {[%clk 0:03:00]} 4. d4 {[%clk 0:02:59]}  cxd4 {[%clk 0:03:00]} 5. Nxd4 {[%clk 0:02:58]}  Qc7 {[%clk 0:03:00]} 6. Bd3 {[%clk 0:02:58]}  Nf6 {[%clk 0:03:01]} 7. Qe2 {[%clk 0:02:57]}  Bd6 {[%clk 0:03:01]} 8. Bd2 {[%clk 0:02:55]}  Nc6 {[%clk 0:03:01]} 9. Nxc6 {[%clk 0:02:46]}  dxc6 {[%clk 0:03:00]} 10. O-O-O {[%clk 0:02:37]}  e5 {[%clk 0:03:00]} 11. h3 {[%clk 0:02:36]}  b5 {[%clk 0:02:59]} 12. Bg5 {[%clk 0:02:24]}  Be6 {[%clk 0:02:59]} 13. Kb1 {[%clk 0:02:15]}  O-O {[%clk 0:02:55]} 14. Bd2 {[%clk 0:02:09]}  c5 {[%clk 0:02:42]} 15. Qe3 {[%clk 0:01:44]}  c4 {[%clk 0:02:40]} 16. Be2 {[%clk 0:01:33]}  Bc5 {[%clk 0:02:34]} 17. Qg3 {[%clk 0:01:33]}  Kh8 {[%clk 0:02:28]} 18. f4 {[%clk 0:01:29]}  b4 {[%clk 0:02:17]} 19. Nd5 {[%clk 0:01:28]}  Bxd5 {[%clk 0:02:12]} 20. exd5 {[%clk 0:01:27]}  c3 {[%clk 0:01:58]} 21. Bc1 {[%clk 0:01:25]}  cxb2 {[%clk 0:01:57]} 22. Bxb2 {[%clk 0:01:20]}  Ne4 {[%clk 0:01:33]} 23. Qf3 {[%clk 0:01:20]}  Nc3+ {[%clk 0:01:32]} 24. Ka1 {[%clk 0:00:58]}  Bd4 {[%clk 0:01:30]} 25. Rxd4 {[%clk 0:00:57]}  exd4 {[%clk 0:01:25]} 26. Bd3 {[%clk 0:00:49]}  Rac8 {[%clk 0:01:25]} 27. f5 {[%clk 0:00:48]}  Qa5 {[%clk 0:01:15]} 28. Bxc3 {[%clk 0:00:28]}  bxc3 {[%clk 0:01:13]} 29. f6 {[%clk 0:00:26]}  g6 {[%clk 0:01:09]} 30. Qf4 {[%clk 0:00:22]}  Qa3 {[%clk 0:01:08]} 31. Rb1 {[%clk 0:00:19]}  Rfd8 {[%clk 0:01:05]} 32. Qh6 {[%clk 0:00:14]}  Qf8 {[%clk 0:00:43]} 33. Qg5 {[%clk 0:00:10]}  Rd6 {[%clk 0:00:24]} 34. Bc4 {[%clk 0:00:08]}  Rxc4 {[%clk 0:00:21]} 35. Qe5 {[%clk 0:00:03]}  Rc8 {[%clk 0:00:19]} 0-1


[Site "https://www.chess.com"]

[Event "Titled Tuesday Blitz January 10 Late 2023"]
[White "Karttunen, Mika"]
[Black "Kovacs, Klara"]
[WhiteFideId "502081"]
[BlackFideId "733210"]
[WhiteElo "2490"]
[BlackElo "2121"]
[Result "1-0"]
[Round "04"]
[TimeControl "180+2"]
[Date "2023.01.10"]
[WhiteClock "0:00:16"]
[BlackClock "0:00:09"]

1. c4 {[%clk 0:00:00]}  e6 {[%clk 0:00:00]} 2. d4 {[%clk 0:03:00]}  d5 {[%clk 0:03:00]} 3. Nc3 {[%clk 0:02:59]}  Nf6 {[%clk 0:03:00]} 4. Bg5 {[%clk 0:02:59]}  Be7 {[%clk 0:03:01]} 5. cxd5 {[%clk 0:02:58]}  exd5 {[%clk 0:03:00]} 6. Qc2 {[%clk 0:02:55]}  h6 {[%clk 0:03:00]} 7. Bh4 {[%clk 0:02:55]}  O-O {[%clk 0:03:00]} 8. e3 {[%clk 0:02:52]}  Nc6 {[%clk 0:03:00]} 9. a3 {[%clk 0:02:52]}  Bg4 {[%clk 0:03:00]} 10. Bd3 {[%clk 0:02:44]}  Re8 {[%clk 0:02:58]} 11. f3 {[%clk 0:02:42]}  Bh5 {[%clk 0:02:57]} 12. Nge2 {[%clk 0:02:28]}  Nd7 {[%clk 0:02:45]} 13. Bf2 {[%clk 0:02:26]}  Nb6 {[%clk 0:02:07]} 14. g4 {[%clk 0:02:19]}  Bg6 {[%clk 0:02:03]} 15. Bxg6 {[%clk 0:02:06]}  fxg6 {[%clk 0:01:52]} 16. Qxg6 {[%clk 0:02:06]}  Bg5 {[%clk 0:01:53]} 17. f4 {[%clk 0:02:06]}  Bf6 {[%clk 0:01:52]} 18. b3 {[%clk 0:02:02]}  Bh4 {[%clk 0:01:46]} 19. g5 {[%clk 0:01:46]}  Rxe3 {[%clk 0:01:26]} 20. Bxh4 {[%clk 0:00:59]}  Nxd4 {[%clk 0:00:55]} 21. Kf2 {[%clk 0:00:51]}  Qe7 {[%clk 0:00:53]} 22. Rhe1 {[%clk 0:00:36]}  Nf3 {[%clk 0:00:44]} 23. Bg3 {[%clk 0:00:31]}  d4 {[%clk 0:00:42]} 24. Nb5 {[%clk 0:00:25]}  d3 {[%clk 0:00:13]} 25. gxh6 {[%clk 0:00:24]}  Rxe2+ {[%clk 0:00:12]} 26. Kxf3 {[%clk 0:00:16]}  Qe3+ {[%clk 0:00:09]} 27. Kg4 {[%clk 0:00:16]} 1-0


[Site "https://www.chess.com"]

[Event "Titled Tuesday Blitz January 10 Late 2023"]
[White "Lopez Idarraga, Daniel Eduardo"]
[Black "Petukhov, Dmitry"]
[WhiteFideId "4405501"]
[BlackFideId "4142748"]
[WhiteElo "2009"]
[BlackElo "2350"]
[Result "1-0"]
[Round "04"]
[TimeControl "180+2"]
[Date "2023.01.10"]
[WhiteClock "0:00:04"]
[BlackClock "0:00:10"]

1. b3 {[%clk 0:00:00]}  a5 {[%clk 0:00:00]} 2. Bb2 {[%clk 0:03:00]}  a4 {[%clk 0:02:59]} 3. d4 {[%clk 0:03:01]}  d5 {[%clk 0:02:59]} 4. e3 {[%clk 0:02:58]}  Bf5 {[%clk 0:02:58]} 5. Bd3 {[%clk 0:02:56]}  Bg6 {[%clk 0:02:58]} 6. Nf3 {[%clk 0:02:56]}  e6 {[%clk 0:02:56]} 7. O-O {[%clk 0:02:56]}  Nf6 {[%clk 0:02:54]} 8. c4 {[%clk 0:02:56]}  c6 {[%clk 0:02:50]} 9. Ne5 {[%clk 0:02:56]}  Nbd7 {[%clk 0:02:47]} 10. f4 {[%clk 0:02:55]}  Nxe5 {[%clk 0:02:42]} 11. fxe5 {[%clk 0:02:54]}  Ne4 {[%clk 0:02:35]} 12. bxa4 {[%clk 0:02:53]}  Bb4 {[%clk 0:02:35]} 13. a3 {[%clk 0:02:40]}  Ba5 {[%clk 0:02:32]} 14. Qc2 {[%clk 0:02:38]}  O-O {[%clk 0:02:32]} 15. Nc3 {[%clk 0:02:38]}  Bxc3 {[%clk 0:02:30]} 16. Bxc3 {[%clk 0:02:37]}  Nxc3 {[%clk 0:02:12]} 17. Qxc3 {[%clk 0:02:38]}  Rxa4 {[%clk 0:02:01]} 18. Bxg6 {[%clk 0:02:39]}  hxg6 {[%clk 0:01:58]} 19. Qb3 {[%clk 0:02:32]}  Rxc4 {[%clk 0:01:55]} 20. Qxb7 {[%clk 0:02:19]}  Qa5 {[%clk 0:01:51]} 21. Rf3 {[%clk 0:02:18]}  Qd2 {[%clk 0:01:44]} 22. h3 {[%clk 0:01:56]}  Rc2 {[%clk 0:01:35]} 23. Rg3 {[%clk 0:01:50]}  Qf2+ {[%clk 0:01:33]} 24. Kh2 {[%clk 0:01:40]}  Rc3 {[%clk 0:01:18]} 25. Rf3 {[%clk 0:01:40]}  Qe2 {[%clk 0:01:06]} 26. Raf1 {[%clk 0:01:33]}  Rc2 {[%clk 0:00:49]} 27. R3f2 {[%clk 0:01:32]}  Qxf2 {[%clk 0:00:49]} 28. Rxf2 {[%clk 0:00:33]}  Rxf2 {[%clk 0:00:49]} 29. a4 {[%clk 0:00:34]}  Ra2 {[%clk 0:00:50]} 30. Qa7 {[%clk 0:00:34]}  f6 {[%clk 0:00:50]} 31. Qe7 {[%clk 0:00:31]}  fxe5 {[%clk 0:00:48]} 32. dxe5 {[%clk 0:00:29]}  Rff2 {[%clk 0:00:40]} 33. Qxe6+ {[%clk 0:00:30]}  Kh7 {[%clk 0:00:39]} 34. Qg4 {[%clk 0:00:25]}  Rfe2 {[%clk 0:00:38]} 35. e6 {[%clk 0:00:23]}  Rxe3 {[%clk 0:00:24]} 36. e7 {[%clk 0:00:21]}  Rae2 {[%clk 0:00:23]} 37. a5 {[%clk 0:00:22]}  Rxe7 {[%clk 0:00:22]} 38. Qh4+ {[%clk 0:00:15]}  Kg8 {[%clk 0:00:21]} 39. Qg3 {[%clk 0:00:13]}  Ra2 {[%clk 0:00:20]} 40. Qxg6 {[%clk 0:00:13]}  Rxa5 {[%clk 0:00:19]} 41. Qxc6 {[%clk 0:00:07]}  Rea7 {[%clk 0:00:18]} 42. h4 {[%clk 0:00:05]}  Kf7 {[%clk 0:00:16]} 43. h5 {[%clk 0:00:03]}  d4 {[%clk 0:00:17]} 44. Qg6+ {[%clk 0:00:03]}  Ke7 {[%clk 0:00:18]} 45. Qxg7+ {[%clk 0:00:03]}  Kd6 {[%clk 0:00:16]} 46. Qxd4+ {[%clk 0:00:03]}  Kc6 {[%clk 0:00:17]} 47. Qg4 {[%clk 0:00:03]}  Rd7 {[%clk 0:00:16]} 48. Qg6+ {[%clk 0:00:03]}  Rd6 {[%clk 0:00:14]} 49. Qc2+ {[%clk 0:00:02]}  Rc5 {[%clk 0:00:15]} 50. Qe4+ {[%clk 0:00:03]}  Rdd5 {[%clk 0:00:15]} 51. g4 {[%clk 0:00:02]}  Kd6 {[%clk 0:00:14]} 52. Kh3 {[%clk 0:00:02]}  Rc3+ {[%clk 0:00:12]} 53. Kh4 {[%clk 0:00:03]}  Rcd3 {[%clk 0:00:09]} 54. Qg6+ {[%clk 0:00:03]}  Kc5 {[%clk 0:00:10]} 55. h6 {[%clk 0:00:03]}  Rd6 {[%clk 0:00:10]} 56. Qg7 {[%clk 0:00:04]}  Rd1 {[%clk 0:00:11]} 57. Kg5 {[%clk 0:00:03]}  R1d5+ {[%clk 0:00:11]} 58. Kf4 {[%clk 0:00:04]}  Rd1 {[%clk 0:00:11]} 59. h7 {[%clk 0:00:04]}  Rf1+ {[%clk 0:00:12]} 60. Kg3 {[%clk 0:00:04]}  Rh1 {[%clk 0:00:12]} 61. h8=Q {[%clk 0:00:04]}  Rg1+ {[%clk 0:00:13]} 62. Kf2 {[%clk 0:00:04]}  Rgd1 {[%clk 0:00:11]} 63. Qc3+ {[%clk 0:00:04]}  Kd5 {[%clk 0:00:11]} 64. Qg8+ {[%clk 0:00:04]}  Ke4 {[%clk 0:00:10]} 65. Qe3# {[%clk 0:00:04]} 1-0


[Site "https://www.chess.com"]

[Event "Titled Tuesday Blitz January 10 Late 2023"]
[White "Gurevich, Dmitry"]
[Black "Lacasa Diaz, Jose Antonio"]
[WhiteFideId "2000407"]
[BlackFideId "2203375"]
[WhiteElo "2393"]
[BlackElo "2359"]
[Result "0-1"]
[Round "04"]
[TimeControl "180+2"]
[Date "2023.01.10"]
[WhiteClock "0:00:02"]
[BlackClock "0:00:01"]

1. d4 {[%clk 0:00:00]}  d5 {[%clk 0:00:00]} 2. c4 {[%clk 0:03:00]}  e6 {[%clk 0:02:56]} 3. Nc3 {[%clk 0:03:00]}  c5 {[%clk 0:02:56]} 4. e3 {[%clk 0:03:00]}  Nc6 {[%clk 0:02:57]} 5. Nf3 {[%clk 0:02:59]}  Nf6 {[%clk 0:02:57]} 6. a3 {[%clk 0:02:59]}  cxd4 {[%clk 0:02:57]} 7. exd4 {[%clk 0:02:59]}  Be7 {[%clk 0:02:54]} 8. cxd5 {[%clk 0:02:58]}  Nxd5 {[%clk 0:02:54]} 9. Bd3 {[%clk 0:02:56]}  O-O {[%clk 0:02:52]} 10. O-O {[%clk 0:02:56]}  Bf6 {[%clk 0:02:50]} 11. Bc2 {[%clk 0:02:56]}  b6 {[%clk 0:02:42]} 12. Qd3 {[%clk 0:02:54]}  g6 {[%clk 0:02:29]} 13. Bh6 {[%clk 0:02:52]}  Re8 {[%clk 0:02:29]} 14. Ne4 {[%clk 0:02:47]}  Bg7 {[%clk 0:02:28]} 15. Bg5 {[%clk 0:02:26]}  f6 {[%clk 0:02:28]} 16. Bd2 {[%clk 0:02:17]}  Bb7 {[%clk 0:02:25]} 17. h4 {[%clk 0:02:11]}  Rc8 {[%clk 0:02:25]} 18. h5 {[%clk 0:02:07]}  f5 {[%clk 0:02:17]} 19. hxg6 {[%clk 0:02:06]}  fxe4 {[%clk 0:02:07]} 20. gxh7+ {[%clk 0:01:52]}  Kh8 {[%clk 0:01:54]} 21. Qxe4 {[%clk 0:01:52]}  Nf6 {[%clk 0:01:53]} 22. Qh4 {[%clk 0:01:53]}  Nxd4 {[%clk 0:01:43]} 23. Nxd4 {[%clk 0:01:46]}  Rxc2 {[%clk 0:01:36]} 24. Nxc2 {[%clk 0:01:32]}  Qxd2 {[%clk 0:01:31]} 25. Ne3 {[%clk 0:01:22]}  Qxb2 {[%clk 0:01:30]} 26. Rac1 {[%clk 0:01:19]}  Qe5 {[%clk 0:01:23]} 27. Rc7 {[%clk 0:01:17]}  Qxc7 {[%clk 0:01:19]} 28. Rd1 {[%clk 0:01:13]}  Rd8 {[%clk 0:01:16]} 29. Re1 {[%clk 0:01:07]}  Qc6 {[%clk 0:01:11]} 30. Qg5 {[%clk 0:01:06]}  Rd3 {[%clk 0:01:07]} 31. Qg6 {[%clk 0:01:05]}  Rd2 {[%clk 0:00:58]} 32. f3 {[%clk 0:01:04]}  Qe8 {[%clk 0:00:51]} 33. Qg5 {[%clk 0:00:45]}  Qh5 {[%clk 0:00:44]} 34. Qf4 {[%clk 0:00:37]}  e5 {[%clk 0:00:38]} 35. Qc4 {[%clk 0:00:37]}  Qg6 {[%clk 0:00:29]} 36. Qc3 {[%clk 0:00:37]}  Rd4 {[%clk 0:00:14]} 37. Nc4 {[%clk 0:00:26]}  Bxf3 {[%clk 0:00:09]} 38. Qxf3 {[%clk 0:00:23]}  Rxc4 {[%clk 0:00:04]} 39. Re3 {[%clk 0:00:19]}  Rc1+ {[%clk 0:00:04]} 40. Kh2 {[%clk 0:00:14]}  Qh5+ {[%clk 0:00:04]} 41. Qxh5 {[%clk 0:00:11]}  Nxh5 {[%clk 0:00:03]} 42. Rd3 {[%clk 0:00:10]}  Kxh7 {[%clk 0:00:04]} 43. Rd7 {[%clk 0:00:09]}  a5 {[%clk 0:00:04]} 44. Rb7 {[%clk 0:00:09]}  Rb1 {[%clk 0:00:04]} 45. g4 {[%clk 0:00:09]}  Nf4 {[%clk 0:00:05]} 46. Kg3 {[%clk 0:00:08]}  Rb3+ {[%clk 0:00:04]} 47. Kh4 {[%clk 0:00:08]}  a4 {[%clk 0:00:04]} 48. Kg5 {[%clk 0:00:08]}  Rxa3 {[%clk 0:00:05]} 49. Kf5 {[%clk 0:00:07]}  Ng6 {[%clk 0:00:05]} 50. Rxb6 {[%clk 0:00:07]}  Rb3 {[%clk 0:00:05]} 51. Rxg6 {[%clk 0:00:06]}  a3 {[%clk 0:00:05]} 52. Ra6 {[%clk 0:00:06]}  Rf3+ {[%clk 0:00:06]} 53. Kg5 {[%clk 0:00:05]}  e4 {[%clk 0:00:05]} 54. Kh5 {[%clk 0:00:04]}  e3 {[%clk 0:00:03]} 55. g5 {[%clk 0:00:04]}  Rh3+ {[%clk 0:00:02]} 56. Kg4 {[%clk 0:00:03]}  e2 {[%clk 0:00:01]} 57. Re6 {[%clk 0:00:03]}  Rg3+ {[%clk 0:00:02]} 58. Kxg3 {[%clk 0:00:02]}  a2 {[%clk 0:00:01]} 0-1


[Site "https://www.chess.com"]

[Event "Titled Tuesday Blitz January 10 Late 2023"]
[White "Itkis, Boris"]
[Black "Al-Tarboush, Ward"]
[WhiteFideId "1209167"]
[BlackFideId "7601450"]
[WhiteElo "2329"]
[BlackElo "2256"]
[Result "0-1"]
[Round "04"]
[TimeControl "180+2"]
[Date "2023.01.10"]
[WhiteClock "0:01:51"]
[BlackClock "0:02:45"]

1. e4 {[%clk 0:00:00]}  c5 {[%clk 0:00:00]} 2. Nf3 {[%clk 0:03:00]}  Nc6 {[%clk 0:02:55]} 3. d4 {[%clk 0:02:59]}  cxd4 {[%clk 0:02:56]} 4. Nxd4 {[%clk 0:02:56]}  Nf6 {[%clk 0:02:56]} 5. Nc3 {[%clk 0:02:57]}  e5 {[%clk 0:02:56]} 6. Ndb5 {[%clk 0:02:55]}  d6 {[%clk 0:02:56]} 7. Nd5 {[%clk 0:02:55]}  Nxd5 {[%clk 0:02:56]} 8. exd5 {[%clk 0:02:56]}  Nb8 {[%clk 0:02:56]} 9. a4 {[%clk 0:02:57]}  Be7 {[%clk 0:02:57]} 10. Be2 {[%clk 0:02:53]}  O-O {[%clk 0:02:57]} 11. Bd2 {[%clk 0:02:53]}  a6 {[%clk 0:02:57]} 12. Na3 {[%clk 0:02:53]}  Nd7 {[%clk 0:02:58]} 13. a5 {[%clk 0:02:51]}  f5 {[%clk 0:02:58]} 14. O-O {[%clk 0:02:48]}  f4 {[%clk 0:02:58]} 15. Nc4 {[%clk 0:02:48]}  e4 {[%clk 0:02:58]} 16. Bg4 {[%clk 0:02:44]}  f3 {[%clk 0:02:56]} 17. g3 {[%clk 0:02:34]}  Ne5 {[%clk 0:02:52]} 18. Nxe5 {[%clk 0:02:32]}  dxe5 {[%clk 0:02:50]} 19. Be6+ {[%clk 0:02:25]}  Bxe6 {[%clk 0:02:50]} 20. dxe6 {[%clk 0:01:50]}  Qd5 {[%clk 0:02:49]} 21. Re1 {[%clk 0:01:51]}  Rad8 {[%clk 0:02:45]} 0-1


[Site "https://www.chess.com"]

[Event "Titled Tuesday Blitz January 10 Late 2023"]
[White "Colivet Gamboa, Julio Cesar"]
[Black "Aguilar, Juan"]
[WhiteFideId "3949583"]
[BlackFideId "3800091"]
[WhiteElo "1844"]
[BlackElo "2254"]
[Result "1-0"]
[Round "04"]
[TimeControl "180+2"]
[Date "2023.01.10"]
[WhiteClock "0:00:28"]
[BlackClock "0:00:01"]

1. c4 {[%clk 0:00:00]}  g6 {[%clk 0:00:00]} 2. Nc3 {[%clk 0:02:57]}  Bg7 {[%clk 0:03:00]} 3. g3 {[%clk 0:02:56]}  d6 {[%clk 0:03:01]} 4. Bg2 {[%clk 0:02:56]}  Nf6 {[%clk 0:03:01]} 5. e4 {[%clk 0:02:57]}  O-O {[%clk 0:03:01]} 6. Nge2 {[%clk 0:02:57]}  e5 {[%clk 0:03:01]} 7. O-O {[%clk 0:02:57]}  Nc6 {[%clk 0:03:01]} 8. d3 {[%clk 0:02:58]}  Bd7 {[%clk 0:03:01]} 9. h3 {[%clk 0:02:59]}  Qc8 {[%clk 0:02:59]} 10. Kh2 {[%clk 0:02:59]}  Nd4 {[%clk 0:02:59]} 11. Be3 {[%clk 0:02:59]}  c5 {[%clk 0:02:55]} 12. f4 {[%clk 0:02:59]}  h5 {[%clk 0:02:54]} 13. Qd2 {[%clk 0:02:58]}  h4 {[%clk 0:02:45]} 14. g4 {[%clk 0:02:57]}  exf4 {[%clk 0:02:44]} 15. Bxf4 {[%clk 0:02:56]}  Ne8 {[%clk 0:02:42]} 16. Nd5 {[%clk 0:02:57]}  Nc6 {[%clk 0:02:37]} 17. Nec3 {[%clk 0:02:54]}  Be6 {[%clk 0:02:24]} 18. Bh6 {[%clk 0:02:46]}  Qd7 {[%clk 0:02:06]} 19. Qg5 {[%clk 0:02:37]}  Qd8 {[%clk 0:01:47]} 20. Qd2 {[%clk 0:02:23]}  Be5+ {[%clk 0:01:20]} 21. Kh1 {[%clk 0:02:13]}  a6 {[%clk 0:01:18]} 22. a4 {[%clk 0:02:11]}  Nd4 {[%clk 0:01:10]} 23. Bxf8 {[%clk 0:02:08]}  Kxf8 {[%clk 0:00:58]} 24. Qf2 {[%clk 0:02:06]}  Qg5 {[%clk 0:00:58]} 25. Rab1 {[%clk 0:01:48]}  Rd8 {[%clk 0:00:46]} 26. b4 {[%clk 0:01:34]}  Rd7 {[%clk 0:00:29]} 27. bxc5 {[%clk 0:01:29]}  dxc5 {[%clk 0:00:24]} 28. Rb6 {[%clk 0:01:27]}  Bxd5 {[%clk 0:00:24]} 29. Nxd5 {[%clk 0:01:24]}  Kg7 {[%clk 0:00:18]} 30. a5 {[%clk 0:01:22]}  Nc7 {[%clk 0:00:14]} 31. Rxb7 {[%clk 0:01:12]}  Nxd5 {[%clk 0:00:11]} 32. Rxd7 {[%clk 0:01:06]}  Nf4 {[%clk 0:00:11]} 33. Rd5 {[%clk 0:01:05]}  Nde6 {[%clk 0:00:11]} 34. Rd7 {[%clk 0:01:00]}  Kh6 {[%clk 0:00:11]} 35. Rxf7 {[%clk 0:00:53]}  Qd8 {[%clk 0:00:10]} 36. Qd2 {[%clk 0:00:51]}  g5 {[%clk 0:00:08]} 37. Rf5 {[%clk 0:00:44]}  Qd4 {[%clk 0:00:05]} 38. Qf2 {[%clk 0:00:42]}  Qxd3 {[%clk 0:00:04]} 39. Rxe5 {[%clk 0:00:38]}  Qxc4 {[%clk 0:00:04]} 40. Rd5 {[%clk 0:00:37]}  Qc3 {[%clk 0:00:01]} 41. Qf3 {[%clk 0:00:28]} 1-0


[Site "https://www.chess.com"]

[Event "Titled Tuesday Blitz January 10 Late 2023"]
[White "Abdulla, Murad"]
[Black "Corredor Castellanos, Camilo"]
[WhiteFideId "2403757"]
[BlackFideId "4425871"]
[WhiteElo "2307"]
[BlackElo "1957"]
[Result "1-0"]
[Round "04"]
[TimeControl "180+2"]
[Date "2023.01.10"]
[WhiteClock "0:01:42"]
[BlackClock "0:01:04"]

1. e4 {[%clk 0:00:00]}  c5 {[%clk 0:00:00]} 2. Nf3 {[%clk 0:02:58]}  e6 {[%clk 0:02:59]} 3. g3 {[%clk 0:02:57]}  d5 {[%clk 0:03:00]} 4. Qe2 {[%clk 0:02:57]}  Nf6 {[%clk 0:02:59]} 5. e5 {[%clk 0:02:52]}  Nfd7 {[%clk 0:02:56]} 6. d3 {[%clk 0:02:52]}  Nc6 {[%clk 0:02:56]} 7. Bg2 {[%clk 0:02:50]}  Qc7 {[%clk 0:02:57]} 8. Bf4 {[%clk 0:02:50]}  Be7 {[%clk 0:02:57]} 9. h4 {[%clk 0:02:50]}  b6 {[%clk 0:02:57]} 10. O-O {[%clk 0:02:50]}  Bb7 {[%clk 0:02:56]} 11. c4 {[%clk 0:02:49]}  d4 {[%clk 0:02:57]} 12. Nbd2 {[%clk 0:02:47]}  O-O-O {[%clk 0:02:49]} 13. a3 {[%clk 0:02:47]}  h6 {[%clk 0:02:47]} 14. h5 {[%clk 0:02:39]}  g5 {[%clk 0:02:43]} 15. hxg6 {[%clk 0:02:39]}  fxg6 {[%clk 0:02:42]} 16. g4 {[%clk 0:02:39]}  g5 {[%clk 0:02:42]} 17. Bg3 {[%clk 0:02:37]}  h5 {[%clk 0:02:40]} 18. gxh5 {[%clk 0:02:36]}  Rxh5 {[%clk 0:02:41]} 19. Ne4 {[%clk 0:02:29]}  Rdh8 {[%clk 0:02:42]} 20. Nd6+ {[%clk 0:02:15]}  Kb8 {[%clk 0:02:10]} 21. Nxb7 {[%clk 0:02:11]}  Kxb7 {[%clk 0:02:07]} 22. b4 {[%clk 0:02:10]}  Kc8 {[%clk 0:02:06]} 23. b5 {[%clk 0:02:09]}  Na5 {[%clk 0:02:04]} 24. Nd2 {[%clk 0:02:04]}  Bf8 {[%clk 0:01:51]} 25. Ne4 {[%clk 0:01:53]}  Bg7 {[%clk 0:01:29]} 26. Nd6+ {[%clk 0:01:47]}  Kd8 {[%clk 0:01:21]} 27. Nf7+ {[%clk 0:01:47]}  Ke7 {[%clk 0:01:08]} 28. Nxh8 {[%clk 0:01:47]}  Rxh8 {[%clk 0:01:08]} 29. Qg4 {[%clk 0:01:47]}  Bxe5 {[%clk 0:01:08]} 30. Qxg5+ {[%clk 0:01:41]}  Bf6 {[%clk 0:01:04]} 31. Qxf6+ {[%clk 0:01:42]}  Kxf6 {[%clk 0:01:04]} 32. Bxc7 {[%clk 0:01:42]} 1-0


[Site "https://www.chess.com"]

[Event "Titled Tuesday Blitz January 10 Late 2023"]
[White "Liu, Kelsey"]
[Black "Kleiman, Jake"]
[WhiteFideId "30944481"]
[BlackFideId "2020041"]
[WhiteElo "2065"]
[BlackElo "2399"]
[Result "0-1"]
[Round "04"]
[TimeControl "180+2"]
[Date "2023.01.10"]
[WhiteClock "0:02:06"]
[BlackClock "0:02:23"]

1. e4 {[%clk 0:00:00]}  c5 {[%clk 0:00:00]} 2. Nf3 {[%clk 0:03:00]}  e6 {[%clk 0:02:52]} 3. Nc3 {[%clk 0:02:59]}  a6 {[%clk 0:02:50]} 4. d4 {[%clk 0:02:59]}  cxd4 {[%clk 0:02:49]} 5. Nxd4 {[%clk 0:02:59]}  Qc7 {[%clk 0:02:50]} 6. Bd3 {[%clk 0:02:59]}  Nf6 {[%clk 0:02:51]} 7. O-O {[%clk 0:02:56]}  Nc6 {[%clk 0:02:51]} 8. Be3 {[%clk 0:02:55]}  Nxd4 {[%clk 0:02:51]} 9. Bxd4 {[%clk 0:02:55]}  Bc5 {[%clk 0:02:52]} 10. Be2 {[%clk 0:02:55]}  d6 {[%clk 0:02:53]} 11. Na4 {[%clk 0:02:47]}  Bxd4 {[%clk 0:02:45]} 12. Qxd4 {[%clk 0:02:34]}  e5 {[%clk 0:02:39]} 13. Qe3 {[%clk 0:02:35]}  b5 {[%clk 0:02:39]} 14. Nb6 {[%clk 0:02:13]}  Rb8 {[%clk 0:02:30]} 15. Nxc8 {[%clk 0:02:13]}  Rxc8 {[%clk 0:02:30]} 16. c3 {[%clk 0:02:13]}  O-O {[%clk 0:02:31]} 17. Rad1 {[%clk 0:02:12]}  Rfe8 {[%clk 0:02:28]} 18. Rd2 {[%clk 0:02:09]}  Qc5 {[%clk 0:02:26]} 19. Qg3 {[%clk 0:02:06]}  Nxe4 {[%clk 0:02:23]} 0-1


[Site "https://www.chess.com"]